[Event "Gibraltar Challengers B 2020"]
[Site "Caleta"]
[Date "2020.01.29"]
[Round "5.3"]
[White "Ruperez, Miguel"]
[Black "Nebel, Jens"]
[Result "0-1"]
[ECO "A14"]
[WhiteElo "2126"]
[BlackElo "2168"]
[Annotator "ChessBase"]
[PlyCount "108"]
[EventDate "2020.01.20"]
[EventType "swiss"]
[EventCountry "GGB"]
[SourceTitle "playchess.com"]
[Source "ChessBase"]
[SourceQuality "1"]
[TimeControl "6600+10"]

1. Nf3 {[%emt 0:00:00]} d5 {[%emt 0:00:33]} 2. g3 {[%emt 0:00:47]} Nf6 {[%emt 0:00:47]} 3. Bg2 {[%emt 0:00:55]} e6 {[%emt 0:02:28]} 4. d3 {[%emt 0:03:09]} Be7 {[%emt 0:02:20]} 5. O-O {[%emt 0:03:39]} O-O {[%emt 0:00:11]} 6. b3 {[%emt 0:02:01]} c5 {[%emt 0:02:17]} 7. c4 {[%emt 0:03:57]} Nc6 {[%emt 0:02:24]} 8. e3 {[%emt 0:11:17]} d4 {[%emt 0:08:10]} 9. exd4 {[%emt 0:01:26]} cxd4 {[%emt 0:00:04]} 10. Re1 {[%emt 0:04:43]} Nd7 {[%emt 0:01:30]} 11. a3 {[%emt 0:02:18]} a5 {[%emt 0:00:14]} 12. Nbd2 {[%emt 0:03:05]} e5 {[%emt 0:00:42]} 13. Rb1 {[%emt 0:01:51]} Re8 {[%emt 0:04:47]} 14. h3 {[%emt 0:08:31]} Bf8 {[%emt 0:02:28]} 15. g4 {[%emt 0:02:11]} Nc5 {[%emt 0:11:52]} 16. Ne4 {[%emt 0:01:52]} Nxe4 {[%emt 0:01:54]} 17. Rxe4 {[%emt 0:01:35]} Bd6 {[%emt 0:02:01]} 18. Re1 {[%emt 0:08:30]} Kh8 {[%emt 0:09:37]} 19. Ng5 {[%emt 0:02:36]} Rf8 {[%emt 0:02:30]} 20. Bd5 {[%emt 0:08:28]} Qc7 {[%emt 0:03:39]} 21. Qf3 {[%emt 0:07:11]} f5 {[%emt 0:02:33]} 22. Qg3 {[%emt 0:07:32]} g6 {[%emt 0:12:36]} 23. Qh4 {[%emt 0:01:47]} f4 {[%emt 0:01:33]} 24. Be4 {[%emt 0:04:28]} Qg7 {[%emt 0:00:57]} 25. Nf3 {[%emt 0:01:16]} h6 {[%emt 0:06:39]} 26. g5 {[%emt 0:00:35]} h5 {[%emt 0:00:50]} 27. c5 {[%emt 0:01:46]} Bc7 {[%emt 0:01:17]} 28. Bxc6 {[%emt 0:03:21]} bxc6 {[%emt 0:00:05]} 29. Nd2 {[%emt 0:00:37]} Ba6 {[%emt 0:04:27]} 30. Nc4 {[%emt 0:00:13]} Rf5 {[%emt 0:00:38]} 31. Kh1 {[%emt 0:03:26]} Qf7 {[%emt 0:03:59]} 32. f3 {[%emt 0:00:40]} Qd5 {[%emt 0:01:27]} 33. Qf2 {[%emt 0:01:45]} Rxg5 {[%emt 0:00:48]} 34. Rg1 {[%emt 0:01:27]} Rxg1+ {[%emt 0:00:33]} 35. Kxg1 {[%emt 0:00:02]} Qxc5 {[%emt 0:01:13]} 36. Qg2 {[%emt 0:00:42]} Kh7 {[%emt 0:00:43]} 37. Qg5 {[%emt 0:00:16]} Rf8 {[%emt 0:01:12]} 38. a4 {[%emt 0:00:21]} Rf5 {[%emt 0:02:20]} 39. Qh4 {[%emt 0:00:02]} Qd5 {[%emt 0:00:28]} 40. Qe7+ {[%emt 0:02:28]} Rf7 {[%emt 0:00:22]} 41. Qe8 {[%emt 0:00:14]} c5 {[%emt 0:01:26]} 42. Ba3 {[%emt 0:00:11]} Bb7 {[%emt 0:00:14]} 43. Nd2 {[%emt 0:00:08]} Bc6 {[%emt 0:00:29]} 44. Qc8 {[%emt 0:00:22]} Bd6 {[%emt 0:03:16]} 45. Ne4 {[%emt 0:00:24]} Be7 {[%emt 0:01:36]} 46. Qc7 {[%emt 0:00:55]} Qe6 {[%emt 0:00:31]} 47. Bxc5 {[%emt 0:01:13]} Bxe4 {[%emt 0:00:52]} 48. dxe4 {[%emt 0:00:02]} Bxc5 {[%emt 0:00:26]} 49. Qxc5 {[%emt 0:00:01]} Qxh3 {[%emt 0:00:06]} 50. Rf1 {[%emt 0:00:41]} d3 {[%emt 0:00:27]} 51. Qxe5 {[%emt 0:00:53]} d2 {[%emt 0:00:09]} 52. Qa1 {[%emt 0:00:19]} Rd7 {[%emt 0:00:13]} 53. Qd1 {[%emt 0:00:01]} g5 {[%emt 0:00:22]} 54. Qe2 {[%emt 0:01:02]} Qxf1+ {[%emt 0:00:01] Qd1 Qh3} 0-1

[Event "Gibraltar Challengers B 2020"]
[Site "Caleta"]
[Date "2020.01.29"]
[Round "5.13"]
[White "Bujakevich, Aleksandr"]
[Black "Meszaros, Andras"]
[Result "1-0"]
[ECO "C55"]
[WhiteElo "2014"]
[BlackElo "2244"]
[Annotator "ChessBase"]
[PlyCount "133"]
[EventDate "2020.01.20"]
[EventType "swiss"]
[EventCountry "GGB"]
[SourceTitle "playchess.com"]
[Source "ChessBase"]
[SourceQuality "1"]
[TimeControl "6600+10"]

1. e4 {[%emt 0:00:00]} e5 {[%emt 0:00:00]} 2. Nf3 {[%emt 0:00:02]} Nc6 {[%emt 0:00:00]} 3. Bc4 {[%emt 0:00:19]} Nf6 {[%emt 0:00:10]} 4. d3 {[%emt 0:00:16]} Be7 {[%emt 0:00:13]} 5. O-O {[%emt 0:00:15]} O-O {[%emt 0:00:08]} 6. Re1 {[%emt 0:00:17]} d6 {[%emt 0:00:09]} 7. a4 {[%emt 0:00:34]} h6 {[%emt 0:00:14]} 8. Nbd2 {[%emt 0:00:45]} Na5 {[%emt 0:01:01]} 9. Ba2 {[%emt 0:01:46]} c5 {[%emt 0:00:12]} 10. c3 {[%emt 0:04:32]} Be6 {[%emt 0:04:18]} 11. Bxe6 {[%emt 0:07:41]} fxe6 {[%emt 0:00:05]} 12. d4 {[%emt 0:00:54]} cxd4 {[%emt 0:09:30]} 13. cxd4 {[%emt 0:01:09]} Nd7 {[%emt 0:00:30]} 14. b4 {[%emt 0:23:47]} Nc6 {[%emt 0:00:12]} 15. Qb3 {[%emt 0:00:38]} Kh7 {[%emt 0:24:28]} 16. d5 {[%emt 0:13:29]} exd5 {[%emt 0:03:19]} 17. exd5 {[%emt 0:01:13]} Ncb8 {[%emt 0:00:10]} 18. Ne4 {[%emt 0:01:27]} Kh8 {[%emt 0:01:50]} 19. Bd2 {[%emt 0:03:26]} Qe8 {[%emt 0:00:20]} 20. Rac1 {[%emt 0:04:19]} Na6 {[%emt 0:01:11]} 21. Be3 {[%emt 0:06:56]} Qg6 {[%emt 0:00:40]} 22. Ng3 {[%emt 0:00:28]} Rfc8 {[%emt 0:10:47]} 23. Rc4 {[%emt 0:09:39]} Nb6 {[%emt 0:07:11]} 24. Bxb6 {[%emt 0:02:50]} axb6 {[%emt 0:00:05]} 25. Nd2 {[%emt 0:02:10]} Rxc4 {[%emt 0:07:02]} 26. Nxc4 {[%emt 0:03:40]} Rc8 {[%emt 0:00:12]} 27. Ne4 {[%emt 0:02:27]} Nb8 {[%emt 0:00:10]} 28. h3 {[%emt 0:03:59]} Nd7 {[%emt 0:00:04]} 29. a5 {[%emt 0:00:37]} bxa5 {[%emt 0:24:19]} 30. bxa5 {[%emt 0:00:09]} Nc5 {[%emt 0:00:24]} 31. Nxc5 {[%emt 0:00:17]} Rxc5 {[%emt 0:00:03]} 32. Qxb7 {[%emt 0:04:59]} Bh4 {[%emt 0:02:28]} 33. Qa8+ {[%emt 0:04:06]} Kh7 {[%emt 0:00:07]} 34. Ne3 {[%emt 0:00:12]} Qf7 {[%emt 0:02:14]} 35. g3 {[%emt 0:01:18]} Bxg3 {[%emt 0:02:10]} 36. fxg3 {[%emt 0:00:44]} Qf3 {[%emt 0:00:04]} 37. Qa6 {[%emt 0:02:03]} Qxg3+ {[%emt 0:01:17]} 38. Kf1 {[%emt 0:00:06]} Qxh3+ {[%emt 0:02:20]} 39. Ke2 {[%emt 0:00:03]} Qh2+ {[%emt 0:00:12]} 40. Kd1 {[%emt 0:00:04]} Qb2 {[%emt 0:01:12]} 41. Qd3+ {[%emt 0:00:10]} Kg8 {[%emt 0:00:07]} 42. Nc2 {[%emt 0:00:44]} Qa2 {[%emt 0:00:49]} 43. Nb4 {[%emt 0:01:13]} Qxa5 {[%emt 0:00:43]} 44. Re4 {[%emt 0:00:30]} Qa1+ {[%emt 0:00:28]} 45. Ke2 {[%emt 0:00:33]} Qg1 {[%emt 0:01:49]} 46. Rc4 {[%emt 0:00:14]} Qg2+ {[%emt 0:00:26]} 47. Kd1 {[%emt 0:00:07]} Qg1+ {[%emt 0:00:49]} 48. Kc2 {[%emt 0:00:01]} Qg2+ {[%emt 0:00:28]} 49. Kb3 {[%emt 0:00:05]} Qf2 {[%emt 0:00:43]} 50. Rxc5 {[%emt 0:00:39]} Qxc5 {[%emt 0:00:02]} 51. Qh3 {[%emt 0:00:08]} Kh7 {[%emt 0:00:34]} 52. Qf5+ {[%emt 0:00:02]} Kg8 {[%emt 0:00:02]} 53. Qe6+ {[%emt 0:00:02]} Kh7 {[%emt 0:00:01]} 54. Nc6 {[%emt 0:00:05]} Qb5+ {[%emt 0:00:11]} 55. Ka3 {[%emt 0:00:02]} Qc5+ {[%emt 0:00:03]} 56. Ka4 {[%emt 0:00:01]} h5 {[%emt 0:00:27]} 57. Ne7 {[%emt 0:00:02]} Qc4+ {[%emt 0:00:15]} 58. Ka5 {[%emt 0:00:04]} Qc7+ {[%emt 0:00:03]} 59. Ka6 {[%emt 0:00:05]} Qc4+ {[%emt 0:00:04]} 60. Kb7 {[%emt 0:00:03]} Qb4+ {[%emt 0:00:06]} 61. Kc7 {[%emt 0:00:04]} Qc5+ {[%emt 0:00:16]} 62. Kd8 {[%emt 0:00:06]} Qb6+ {[%emt 0:00:03]} 63. Kd7 {[%emt 0:00:22]} Qb7+ {[%emt 0:00:06]} 64. Kxd6 {[%emt 0:00:02]} Qb8+ {[%emt 0:00:04]} 65. Kd7 {[%emt 0:00:02]} Qb7+ {[%emt 0:00:05]} 66. Ke8 {[%emt 0:00:04]} Qb8+ {[%emt 0:00:14]} 67. Kf7 {[%emt 0:00:08]} 1-0

[Event "Gibraltar Challengers B 2020"]
[Site "Caleta"]
[Date "2020.01.29"]
[Round "5.14"]
[White "Ankitha Goud Palle"]
[Black "Kandic, Milan"]
[Result "1-0"]
[ECO "A55"]
[WhiteElo "1761"]
[BlackElo "2132"]
[Annotator "ChessBase"]
[PlyCount "145"]
[EventDate "2020.01.20"]
[EventType "swiss"]
[EventCountry "GGB"]
[SourceTitle "playchess.com"]
[Source "ChessBase"]
[SourceQuality "1"]
[TimeControl "6600+10"]

1. Nf3 {[%emt 0:00:00]} d6 {[%emt 0:02:08]} 2. d4 {[%emt 0:01:17]} Nf6 {[%emt 0:00:07]} 3. c4 {[%emt 0:01:42]} Nbd7 {[%emt 0:03:15]} 4. Nc3 {[%emt 0:02:01]} e5 {[%emt 0:00:07]} 5. g3 {[%emt 0:02:04]} c6 {[%emt 0:00:21]} 6. Bg2 {[%emt 0:00:36]} Be7 {[%emt 0:00:05]} 7. O-O {[%emt 0:01:17]} O-O {[%emt 0:00:12]} 8. e4 {[%emt 0:01:31]} Qc7 {[%emt 0:00:17]} 9. h3 {[%emt 0:01:31]} a6 {[%emt 0:00:31]} 10. a4 {[%emt 0:00:18]} a5 {[%emt 0:00:20]} 11. Be3 {[%emt 0:01:00]} Re8 {[%emt 0:00:22]} 12. Qc2 {[%emt 0:06:16]} Bf8 {[%emt 0:01:02]} 13. Rad1 {[%emt 0:05:41]} Rb8 {[%emt 0:05:34]} 14. Rd2 {[%emt 0:05:11]} b6 {[%emt 0:03:13]} 15. Rfd1 {[%emt 0:10:22]} Ba6 {[%emt 0:04:57]} 16. b3 {[%emt 0:00:48]} Rec8 {[%emt 0:13:30]} 17. Qb1 {[%emt 0:07:08]} b5 {[%emt 0:02:03]} 18. axb5 {[%emt 0:03:50]} cxb5 {[%emt 0:00:10]} 19. dxe5 {[%emt 0:02:21]} dxe5 {[%emt 0:00:38]} 20. cxb5 {[%emt 0:10:27]} Bxb5 {[%emt 0:01:01]} 21. Nxb5 {[%emt 0:01:40]} Rxb5 {[%emt 0:02:12]} 22. Bf1 {[%emt 0:02:09]} Rb4 {[%emt 0:00:31]} 23. Bc4 {[%emt 0:04:18]} Qb7 {[%emt 0:11:38]} 24. Qa1 {[%emt 0:01:49]} Re8 {[%emt 0:21:30]} 25. Qxa5 {[%emt 0:11:49]} h6 {[%emt 0:10:05]} 26. Qa7 {[%emt 0:06:08]} Qxe4 {[%emt 0:05:11]} 27. Rxd7 {[%emt 0:03:08]} Rxc4 {[%emt 0:05:27]} 28. bxc4 {[%emt 0:01:25]} Nxd7 {[%emt 0:05:57]} 29. Qxd7 {[%emt 0:00:45]} Qxf3 {[%emt 0:00:22]} 30. Qxe8 {[%emt 0:01:06]} Qxd1+ {[%emt 0:00:03]} 31. Kh2 {[%emt 0:00:13]} Qd6 {[%emt 0:00:55]} 32. c5 {[%emt 0:00:21]} Qe7 {[%emt 0:00:58]} 33. Qb8 {[%emt 0:02:07]} Qe6 {[%emt 0:01:07]} 34. Qb7 {[%emt 0:01:36]} Qc4 {[%emt 0:03:47]} 35. c6 {[%emt 0:01:57]} Bd6 {[%emt 0:00:03]} 36. Qd7 {[%emt 0:00:34]} Qb4 {[%emt 0:00:53]} 37. c7 {[%emt 0:00:49]} Bxc7 {[%emt 0:00:01]} 38. Qxc7 {[%emt 0:00:09]} Qe4 {[%emt 0:00:26]} 39. h4 {[%emt 0:01:10]} Qf5 {[%emt 0:00:45]} 40. Qd6 {[%emt 0:00:48]} f6 {[%emt 0:00:11]} 41. Qd5+ {[%emt 0:00:46]} Kh8 {[%emt 0:00:17]} 42. Kg2 {[%emt 0:00:20]} Qc2 {[%emt 0:00:20]} 43. Qf3 {[%emt 0:01:17]} Qg6 {[%emt 0:00:29]} 44. h5 {[%emt 0:00:29]} Qf7 {[%emt 0:00:03]} 45. g4 {[%emt 0:00:28]} Qe6 {[%emt 0:00:26]} 46. Qa8+ {[%emt 0:01:20]} Kh7 {[%emt 0:00:02]} 47. Qe4+ {[%emt 0:00:03]} Kh8 {[%emt 0:00:04]} 48. Qg6 {[%emt 0:00:12]} Qd5+ {[%emt 0:00:21]} 49. Kh2 {[%emt 0:00:22]} Qf3 {[%emt 0:00:08]} 50. Kg1 {[%emt 0:01:01]} Qd1+ {[%emt 0:00:16]} 51. Kg2 {[%emt 0:00:10]} Qd5+ {[%emt 0:00:06]} 52. Kg3 {[%emt 0:00:49]} Qh1 {[%emt 0:00:46]} 53. Bxh6 {[%emt 0:00:50]} Qg1+ {[%emt 0:00:01]} 54. Kf3 {[%emt 0:00:04]} e4+ {[%emt 0:00:17]} 55. Ke2 {[%emt 0:00:27]} gxh6 {[%emt 0:00:01]} 56. Qxh6+ {[%emt 0:00:03]} Kg8 {[%emt 0:00:01]} 57. Qg6+ {[%emt 0:00:02]} Kf8 {[%emt 0:00:10]} 58. Qxf6+ {[%emt 0:00:03]} Ke8 {[%emt 0:00:03]} 59. Qe6+ {[%emt 0:00:07]} Kf8 {[%emt 0:00:08]} 60. Qxe4 {[%emt 0:00:02]} Qc1 {[%emt 0:00:09]} 61. Qf5+ {[%emt 0:00:15]} Ke7 {[%emt 0:00:08]} 62. Kf3 {[%emt 0:00:14]} Qh1+ {[%emt 0:00:01]} 63. Kg3 {[%emt 0:00:08]} Kd6 {[%emt 0:00:23]} 64. Qf4+ {[%emt 0:00:09]} Ke6 {[%emt 0:00:07]} 65. h6 {[%emt 0:00:16]} Ke7 {[%emt 0:00:16]} 66. Qg5+ {[%emt 0:00:06]} Ke6 {[%emt 0:00:06]} 67. Qf5+ {[%emt 0:00:01]} Ke7 {[%emt 0:00:06]} 68. h7 {[%emt 0:00:02]} Qg1+ {[%emt 0:00:01]} 69. Kh4 {[%emt 0:00:10]} Qh1+ {[%emt 0:00:10]} 70. Kg5 {[%emt 0:00:05]} Qa1 {[%emt 0:00:10]} 71. Qe4+ {[%emt 0:00:20]} Kf7 {[%emt 0:00:15]} 72. Qd5+ {[%emt 0:00:05]} Kg7 {[%emt 0:00:14]} 73. Qg8# {[%emt 0:00:03]} 1-0

[Event "Gibraltar Challengers B 2020"]
[Site "Caleta"]
[Date "2020.01.29"]
[Round "5.15"]
[White "Karlsson, Jorgen"]
[Black "Paul, Nathanael"]
[Result "1-0"]
[ECO "D01"]
[WhiteElo "2054"]
[BlackElo "1987"]
[Annotator "NA RC"]
[PlyCount "119"]
[EventDate "2020.01.20"]
[EventType "swiss"]
[EventCountry "GGB"]
[SourceTitle "playchess.com"]
[Source "ChessBase"]
[SourceQuality "1"]
[TimeControl "6600+10"]

1. d4 {[%emt 0:00:00]} d5 {[%emt 0:00:19]} 2. Nc3 {[%emt 0:00:10]} Nf6 {[%emt 0:00:57]} 3. Bg5 {[%emt 0:00:07]} Bf5 {[%emt 0:01:30]} 4. f3 {[%emt 0:00:35]} Nbd7 {[%emt 0:01:57]} 5. g4 {[%emt 0:01:51]} (5. Qd2 e6 6. e3 Be7 7. Nge2 h6 8. Bxf6 Nxf6 9. Nf4 c6 10. g4 Bh7 11. Bd3 g5 12. Bxh7 gxf4 13. Bd3 fxe3 14. Qxe3 {½-½ (41) Shimanov,A (2664)-Ovetchkin,R (2529) Ekaterinburg 2013}) 5... Bg6 {[%emt 0:01:49]} 6. Bf4 {[%emt 0:03:02] D01: Veresov Opening} c5 $146 {[%emt 0:05:17]} ({Predecessor:} 6... c6 7. h4 h6 8. e3 e6 9. Bd3 Bxd3 10. Qxd3 Bb4 11. Nge2 c5 12. Kf2 cxd4 13. exd4 {1-0 (33) Bakalar,J (2017)-Simo,L (1701) Zilina 2011}) 7. e3 {[%emt 0:00:58]} Qb6 {[%emt 0:00:36]} 8. Nb5 {[%emt 0:01:02]} Rc8 {[%emt 0:00:02]} 9. a4 {[%emt 0:02:39]} cxd4 {[%emt 0:08:33]} 10. a5 {[%emt 0:04:14]} Qd8 {[%emt 0:00:23]} 11. exd4 {[%emt 0:00:49]} a6 {[%emt 0:23:43]} 12. Nc3 {[%emt 0:00:10]} e6 {[%emt 0:00:40]} 13. Ra4 {[%emt 0:07:55]} Be7 {[%emt 0:02:19]} 14. Bd3 {[%emt 0:01:03]} Bxd3 {[%emt 0:03:49]} 15. Qxd3 {[%emt 0:00:09]} O-O {[%emt 0:00:08]} 16. Nge2 {[%emt 0:03:44]} Nb8 {[%emt 0:00:10]} 17. Nd1 {[%emt 0:08:39]} Nc6 {[%emt 0:00:57]} 18. Bd2 {[%emt 0:00:48]} Qd7 {[%emt 0:01:58]} 19. Nf2 {[%emt 0:10:34]} e5 {[%emt 0:00:15]} 20. g5 {[%emt 0:09:26]} Ne8 {[%emt 0:06:57]} 21. b3 {[%emt 0:04:20]} Nc7 {[%emt 0:13:02]} 22. Ng4 {[%emt 0:04:54]} e4 {[%emt 0:12:09]} 23. Qe3 {[%emt 0:01:22]} f6 {[%emt 0:00:09]} 24. g6 {[%emt 0:06:51]} (24. gxf6 {keeps fighting.} Bxf6 25. Nxf6+ Rxf6 26. fxe4) 24... h5 $2 {[%emt 0:02:52] [#]} ({Better is} 24... hxg6 $19 25. Nf2 f5) 25. Nh6+ $1 {[%emt 0:03:03]} Kh8 {[%emt 0:05:34]} (25... gxh6 $16 26. Qxh6 Bd6) 26. fxe4 {[%emt 0:06:24]} dxe4 {[%emt 0:00:13]} 27. c4 $2 {[%emt 0:05:42]} ({But not} 27. Qxe4 $6 Rfe8 $16) (27. O-O $18 Nd5 28. Nf7+ (28. Qxe4 gxh6 29. Rf5 Rfd8 $11) 28... Rxf7 29. Qxe4) 27... Rcd8 {[%emt 0:00:40]} 28. Bc3 {[%emt 0:03:16]} (28. Nf7+ $16 Rxf7 29. gxf7) 28... Bc5 {[%emt 0:01:05]} 29. Nf7+ {[%emt 0:00:46] Double Attack} Rxf7 {[%emt 0:00:01]} 30. gxf7 {[%emt 0:00:10]} Ba7 {[%emt 0:04:21]} 31. Rf1 {[%emt 0:05:43]} (31. Qxe4 $16 Qxf7 32. d5) 31... Qxf7 {[%emt 0:00:41] [#]} 32. Rf5 {[%emt 0:02:20]} ({Much weaker is} 32. Qxe4 Bxd4 33. Bxd4 Nxd4 $15) ({Better is} 32. Ra2 $1 $16) 32... Qg6 $2 {[%emt 0:02:34]} (32... Kg8 $11 {and Black is okay.}) 33. Qh3 {[%emt 0:00:42]} Kg8 {[%emt 0:00:53]} 34. Rxh5 {[%emt 0:00:23]} Kf7 {[%emt 0:00:58]} 35. d5 {[%emt 0:00:39]} Nd4 {[%emt 0:00:33]} 36. Bxd4 {[%emt 0:01:27]} ({Don't play} 36. Nxd4 Qg1+ 37. Qf1 Bxd4 $18) 36... Bxd4 {[%emt 0:00:02]} 37. Qg3 {[%emt 0:02:25]} Qxg3+ {[%emt 0:05:27]} 38. hxg3 {[%emt 0:00:07]} Be5 {[%emt 0:00:03]} 39. g4 {[%emt 0:00:26]} Ne8 {[%emt 0:00:31]} 40. Rh8 {[%emt 0:00:44]} g6 {[%emt 0:00:58]} 41. Rb4 {[%emt 0:00:33]} Rd7 {[%emt 0:00:20]} 42. Rb6 {[%emt 0:00:28]} f5 {[%emt 0:00:38]} 43. Rxe8 {[%emt 0:00:21]} Kxe8 {[%emt 0:00:02]} 44. Rxg6 {[%emt 0:01:36]} f4 {[%emt 0:00:02]} 45. Rg8+ {[%emt 0:02:13]} Kf7 {[%emt 0:00:01]} 46. Rg5 {[%emt 0:00:21]} Bf6 {[%emt 0:00:50]} 47. Rf5 {[%emt 0:00:07]} f3 {[%emt 0:00:01]} 48. g5 {[%emt 0:00:14]} Kg6 {[%emt 0:00:12]} 49. Rxf6+ {[%emt 0:00:25]} Kxg5 {[%emt 0:00:03]} 50. Re6 {[%emt 0:00:14]} fxe2 {[%emt 0:00:08]} 51. Rxe4 {[%emt 0:00:04]} Rh7 {[%emt 0:00:29]} 52. Kxe2 {[%emt 0:00:10]} Kf5 {[%emt 0:00:22]} 53. Re6 {[%emt 0:00:17]} Rh2+ {[%emt 0:00:08]} 54. Kd3 {[%emt 0:00:05]} Kf4 {[%emt 0:00:04]} 55. Re7 {[%emt 0:00:08]} Rh3+ $18 {[%emt 0:00:02]} 56. Kc2 {[%emt 0:00:01]} Rh2+ {[%emt 0:00:36]} 57. Kc3 {[%emt 0:00:03]} Ra2 {[%emt 0:00:16]} 58. Kb4 {[%emt 0:00:12]} b5 {[%emt 0:00:06]} 59. axb6 {[%emt 0:00:03]} a5+ {[%emt 0:00:01]} 60. Kc3 {[%emt 0:00:16]} 1-0

[Event "Gibraltar Challengers B 2020"]
[Site "Caleta"]
[Date "2020.01.29"]
[Round "5.16"]
[White "Herzwurm, Robert"]
[Black "George, Lolomari Erekosima"]
[Result "1-0"]
[ECO "B12"]
[WhiteElo "1979"]
[BlackElo "2053"]
[Annotator "NA RC"]
[PlyCount "69"]
[EventDate "2020.01.20"]
[EventType "swiss"]
[EventCountry "GGB"]
[SourceTitle "playchess.com"]
[Source "ChessBase"]
[SourceQuality "1"]
[TimeControl "6600+10"]

{[%evp 11,69,28,32767,32767,24,32767,44,32767,32767,32767,32767,41,32767,32767,36,0,0,-8,48,-48,-46,-52,-4,-40,32767,32767,32767,-145,-142,-143,-147,-151,0,-17,28,-11,32767,0,32767,-14,32767,32767,32767,32767,32767,32767,-67,32767,32767,-60,59,68,106,32767,32767,32767,318,279,300,270]} 1. e4 {[%emt 0:00:00]} c6 {[%emt 0:08:40]} 2. d4 {[%emt 0:00:08]} d5 {[%emt 0:00:29]} 3. e5 {[%emt 0:00:10]} Bf5 {[%emt 0:00:08]} 4. Nf3 {[%emt 0:00:08]} e6 {[%emt 0:00:06]} 5. Be2 {[%emt 0:00:07]} Nd7 {[%emt 0:00:26]} 6. O-O {[%emt 0:00:33]} h6 {[%emt 0:01:28]} 7. Nbd2 {[%emt 0:01:56]} Ne7 {[%emt 0:02:46] B12: Caro-Kann: Advance Variation} 8. Nb3 {[%emt 0:02:11]} Bh7 {[%emt 0:05:37]} (8... Nc8 9. Ne1 Be7 10. Bd3 Bxd3 11. Nxd3 Ncb6 12. Qg4 g6 13. Nd2 Qc7 14. a4 {0-1 (51) Sasikiran,K (2656)-Wojtaszek,R (2725) Moscow 2019}) 9. Bd2 {[%emt 0:01:42]} Nc8 {[%emt 0:06:11]} 10. Rc1 {[%emt 0:04:04]} Ncb6 $146 {[%emt 0:05:16]} ({Predecessor:} 10... b5 11. Bd3 a5 12. Bxh7 Rxh7 13. Ra1 a4 14. Nc1 g5 15. h3 {½-½ (53) Lizorkina,V (2081)-Luers,C (1740) LSS email 2011}) 11. Na5 {[%emt 0:15:56]} Qb8 {[%emt 0:02:13]} 12. c3 {[%emt 0:05:48]} Be7 {[%emt 0:01:24]} 13. Qb3 {[%emt 0:06:28]} O-O {[%emt 0:00:12]} 14. c4 {[%emt 0:04:31]} c5 {[%emt 0:22:52]} 15. Bc3 {[%emt 0:11:47]} (15. cxd5 $11 Nxd5 16. Bb5) 15... dxc4 {[%emt 0:22:30]} 16. Nxc4 {[%emt 0:03:02]} Rc8 {[%emt 0:03:00]} 17. Ne3 {[%emt 0:11:34]} Be4 {[%emt 0:07:05]} 18. Nd2 {[%emt 0:06:18]} Bc6 {[%emt 0:01:22]} 19. Bc4 {[%emt 0:08:26] [#]} (19. Ndc4 $15) 19... Ba4 $1 {[%emt 0:07:06]} 20. Qa3 {[%emt 0:00:25]} cxd4 {[%emt 0:00:05]} 21. Qxe7 {[%emt 0:00:16]} dxe3 $2 {[%emt 0:00:02]} (21... dxc3 $17 22. Rxc3 Nxe5) 22. fxe3 {[%emt 0:00:52]} Rf8 {[%emt 0:07:14]} ({And not} 22... Nxc4 23. Rxf7 Kh8 24. Rxg7 Nf6 25. Qxf6 Bc2 26. Rxc2 Nxd2 27. Qxh6#) 23. Rf4 {[%emt 0:06:24]} Qd8 {[%emt 0:03:26]} 24. Qd6 {[%emt 0:05:47]} Rc8 {[%emt 0:00:02]} 25. b3 {[%emt 0:00:24]} Bc6 {[%emt 0:00:30]} 26. Rcf1 {[%emt 0:00:45]} Qg5 {[%emt 0:00:04]} 27. Nf3 {[%emt 0:00:21]} Bxf3 {[%emt 0:00:07]} 28. R1xf3 {[%emt 0:00:23]} Nxc4 {[%emt 0:00:51]} 29. bxc4 {[%emt 0:00:10]} Nb6 {[%emt 0:00:01]} 30. h4 {[%emt 0:00:54]} Qd8 {[%emt 0:00:40]} (30... Qh5 $15) 31. Bb4 {[%emt 0:03:43]} Qxd6 {[%emt 0:00:20]} 32. Bxd6 {[%emt 0:00:15]} Rxc4 {[%emt 0:00:09]} 33. Bxf8 {[%emt 0:00:38]} Rxf4 {[%emt 0:00:38]} 34. exf4 {[%emt 0:00:13]} Kxf8 {[%emt 0:00:02]} 35. Rb3 $18 {[%emt 0:00:22]} 1-0